[Event "51st Rilton Cup 2023-24"]
[Site "Stockholm"]
[Date "2023.12.28"]
[Round "2.10"]
[White "Nyysti, Sampsa"]
[Black "Sokolovsky, Yahli"]
[Result "0-1"]
[ECO "A15"]
[WhiteElo "2339"]
[BlackElo "2443"]
[Annotator "ChessBase"]
[PlyCount "48"]
[EventDate "2023.12.27"]
[EventType "swiss"]
[EventCountry "SWE"]
[SourceTitle "playchess.com"]
[Source "ChessBase"]
[SourceQuality "1"]
[TimeControl "40/5400+30:1800+30"]

1. Nf3 {[%emt 0:00:01]} Nf6 {[%emt 0:02:54]} 2. c4 {[%emt 0:00:10]} g6 {[%emt 0:00:11]} 3. b3 {[%emt 0:00:11]} Bg7 {[%emt 0:01:34]} 4. Bb2 {[%emt 0:00:02]} O-O {[%emt 0:00:13]} 5. g3 {[%emt 0:00:15]} d5 {[%emt 0:00:15]} 6. cxd5 {[%emt 0:02:01]} Qxd5 {[%emt 0:00:06]} 7. Nc3 {[%emt 0:03:03]} Qh5 {[%emt 0:04:48]} 8. h3 {[%emt 0:05:36]} e5 {[%emt 0:01:50]} 9. Bg2 {[%emt 0:01:45]} e4 {[%emt 0:01:34]} 10. Nd4 {[%emt 0:00:25]} Rd8 {[%emt 0:05:40]} 11. Nc2 {[%emt 0:07:56]} a5 {[%emt 0:20:06]} 12. Qc1 {[%emt 0:07:42]} Re8 {[%emt 0:06:17]} 13. g4 {[%emt 0:05:13]} Qh4 {[%emt 0:05:00]} 14. Ne3 {[%emt 0:03:41]} Ra6 {[%emt 0:01:57]} 15. Qc2 {[%emt 0:14:46]} Rc6 {[%emt 0:02:59]} 16. Rc1 {[%emt 0:00:26]} Na6 {[%emt 0:07:35]} 17. Qb1 {[%emt 0:00:54]} Bd7 {[%emt 0:03:29]} 18. Ncd5 {[%emt 0:12:33]} Rd6 {[%emt 0:00:40]} 19. Nxf6+ {[%emt 0:03:28]} Bxf6 {[%emt 0:00:16]} 20. Nc4 {[%emt 0:02:29]} Rde6 {[%emt 0:02:21]} 21. Nxa5 {[%emt 0:01:29]} Nb4 {[%emt 0:07:34]} 22. Nc4 {[%emt 0:03:04]} Nd3+ {[%emt 0:05:25]} 23. exd3 {[%emt 0:00:04]} exd3+ {[%emt 0:00:08]} 24. Ne3 {[%emt 0:02:32]} Rxe3+ {[%emt 0:00:48]} 0-1

[Event "51st Rilton Cup 2023-24"]
[Site "Stockholm"]
[Date "2023.12.28"]
[Round "2.11"]
[White "Elmi, Saad Abobaker"]
[Black "Malek, Jan"]
[Result "1-0"]
[ECO "C78"]
[WhiteElo "2333"]
[BlackElo "2434"]
[Annotator "ChessBase"]
[PlyCount "119"]
[EventDate "2023.12.27"]
[EventType "swiss"]
[EventCountry "SWE"]
[SourceTitle "playchess.com"]
[Source "ChessBase"]
[SourceQuality "1"]
[TimeControl "40/5400+30:1800+30"]

1. e4 {[%emt 0:06:48]} e5 {[%emt 0:00:06]} 2. Nf3 {[%emt 0:00:38]} Nc6 {[%emt 0:00:07]} 3. Bb5 {[%emt 0:00:12]} a6 {[%emt 0:00:07]} 4. Ba4 {[%emt 0:00:11]} Nf6 {[%emt 0:00:07]} 5. O-O {[%emt 0:00:27]} Bc5 {[%emt 0:00:05]} 6. c3 {[%emt 0:01:02]} b5 {[%emt 0:00:06]} 7. Bb3 {[%emt 0:00:08]} d6 {[%emt 0:00:08]} 8. d4 {[%emt 0:00:21]} Bb6 {[%emt 0:00:07]} 9. Be3 {[%emt 0:01:29]} Bg4 {[%emt 0:18:19]} 10. Nbd2 {[%emt 0:24:13]} exd4 {[%emt 0:02:24]} 11. cxd4 {[%emt 0:00:18]} O-O {[%emt 0:06:46]} 12. Qc1 {[%emt 0:10:14]} Na5 {[%emt 0:01:54]} 13. Bc2 {[%emt 0:00:15]} Re8 {[%emt 0:05:12]} 14. Qb1 {[%emt 0:04:25]} h6 {[%emt 0:06:07]} 15. Re1 {[%emt 0:07:15]} c5 {[%emt 0:05:23]} 16. d5 {[%emt 0:02:37]} Ra7 {[%emt 0:11:27]} 17. b4 {[%emt 0:04:44]} cxb4 {[%emt 0:01:15]} 18. Bxb6 {[%emt 0:04:06]} Qxb6 {[%emt 0:00:09]} 19. Qxb4 {[%emt 0:00:12]} Rc7 {[%emt 0:13:45]} 20. Bd3 {[%emt 0:02:47]} Nb7 {[%emt 0:01:22]} 21. e5 {[%emt 0:08:45]} dxe5 {[%emt 0:00:01]} 22. Rxe5 {[%emt 0:00:57]} Rd8 {[%emt 0:04:41]} 23. Rae1 {[%emt 0:00:59]} Nc5 {[%emt 0:01:13]} 24. Bb1 {[%emt 0:02:18]} Qd6 {[%emt 0:03:34]} 25. h3 {[%emt 0:02:26]} Bxf3 {[%emt 0:01:15]} 26. Nxf3 {[%emt 0:00:02]} g6 {[%emt 0:01:11]} 27. Qd4 {[%emt 0:03:01]} Ncd7 {[%emt 0:01:11]} 28. Re7 {[%emt 0:01:07]} Rc4 {[%emt 0:00:52]} 29. Qd2 {[%emt 0:00:38]} Nxd5 {[%emt 0:01:46]} 30. Bxg6 {[%emt 0:03:19]} Qxe7 {[%emt 0:04:44]} 31. Rxe7 {[%emt 0:00:08]} Nxe7 {[%emt 0:00:00]} 32. Bh5 {[%emt 0:01:53]} Rc5 {[%emt 0:04:32]} 33. Bg4 {[%emt 0:02:17]} Rd5 {[%emt 0:02:06]} 34. Qxh6 {[%emt 0:00:34]} Ng6 {[%emt 0:02:07]} 35. Be6 {[%emt 0:03:53]} Rd1+ {[%emt 0:00:32]} 36. Kh2 {[%emt 0:00:02]} Ndf8 {[%emt 0:00:01]} 37. Bb3 {[%emt 0:00:21]} R1d6 {[%emt 0:00:17]} 38. h4 {[%emt 0:01:36]} a5 {[%emt 0:03:57]} 39. h5 {[%emt 0:01:01]} a4 {[%emt 0:00:01]} 40. Bc2 {[%emt 0:00:25]} Rc6 {[%emt 0:00:01]} 41. hxg6 {[%emt 0:30:55]} fxg6 {[%emt 0:02:27]} 42. Qg5 {[%emt 0:00:00]} Rd7 {[%emt 0:02:06]} 43. Be4 {[%emt 0:00:00]} Rcd6 {[%emt 0:03:25]} 44. Qxb5 {[%emt 0:00:00]} Ne6 {[%emt 0:00:08]} 45. Qxa4 {[%emt 0:00:00]} Nf4 {[%emt 0:02:31]} 46. Qc4+ {[%emt 0:00:00]} Kf8 {[%emt 0:00:09]} 47. Ng5 {[%emt 0:00:00]} Nh5 {[%emt 0:01:12]} 48. a4 {[%emt 0:00:00]} Nf6 {[%emt 0:00:25]} 49. Bf3 {[%emt 0:00:00]} Re7 {[%emt 0:00:56]} 50. Qf4 {[%emt 0:00:00]} Ra6 {[%emt 0:00:50]} 51. Ne4 {[%emt 0:00:00]} Rh7+ {[%emt 0:00:34]} 52. Kg3 {[%emt 0:00:00]} Rf7 {[%emt 0:00:50]} 53. Nxf6 {[%emt 0:00:00]} Rfxf6 {[%emt 0:00:03]} 54. Qb4+ {[%emt 0:00:00]} Kg7 {[%emt 0:00:11]} 55. a5 {[%emt 0:00:00]} g5 {[%emt 0:00:29]} 56. Qb5 {[%emt 0:00:00]} Kh6 {[%emt 0:00:16]} 57. Bb7 {[%emt 0:00:00]} Rad6 {[%emt 0:00:29]} 58. a6 {[%emt 0:00:00]} Rd4 {[%emt 0:00:34]} 59. a7 {[%emt 0:00:00]} Kh5 {[%emt 0:00:04]} 60. Qe8+ {[%emt 0:00:00]} 1-0

[Event "51st Rilton Cup 2023-24"]
[Site "Stockholm"]
[Date "2023.12.28"]
[Round "2.12"]
[White "Terrieux, Kevin"]
[Black "Rakesh Kumar Jena"]
[Result "0-1"]
[ECO "D45"]
[WhiteElo "2432"]
[BlackElo "2335"]
[Annotator "ChessBase"]
[PlyCount "64"]
[EventDate "2023.12.27"]
[EventType "swiss"]
[EventCountry "SWE"]
[SourceTitle "playchess.com"]
[Source "ChessBase"]
[SourceQuality "1"]
[TimeControl "40/5400+30:1800+30"]

1. d4 {[%emt 0:00:05]} d5 {[%emt 0:00:07]} 2. c4 {[%emt 0:00:15]} e6 {[%emt 0:00:07]} 3. Nf3 {[%emt 0:00:24]} Nf6 {[%emt 0:00:10]} 4. Nc3 {[%emt 0:00:38]} c6 {[%emt 0:00:20]} 5. e3 {[%emt 0:01:32]} Nbd7 {[%emt 0:00:14]} 6. Be2 {[%emt 0:04:54]} dxc4 {[%emt 0:00:36]} 7. a4 {[%emt 0:00:14]} Bd6 {[%emt 0:02:09]} 8. Nd2 {[%emt 0:21:02]} O-O {[%emt 0:02:14]} 9. Nxc4 {[%emt 0:00:18]} Bc7 {[%emt 0:01:00]} 10. e4 {[%emt 0:05:06]} e5 {[%emt 0:00:38]} 11. d5 {[%emt 0:31:03]} Nb6 {[%emt 0:00:33]} 12. Ne3 {[%emt 0:05:57]} a5 {[%emt 0:02:14]} 13. Bf3 {[%emt 0:05:54]} Qe7 {[%emt 0:01:20]} 14. O-O {[%emt 0:00:34]} Rd8 {[%emt 0:00:51]} 15. Qc2 {[%emt 0:00:06]} Bd6 {[%emt 0:03:42]} 16. dxc6 {[%emt 0:01:35]} bxc6 {[%emt 0:00:09]} 17. Nf5 {[%emt 0:00:13]} Bxf5 {[%emt 0:05:44]} 18. exf5 {[%emt 0:00:02]} h6 {[%emt 0:01:01]} 19. Ne4 {[%emt 0:01:50]} Nxe4 {[%emt 0:02:31]} 20. Bxe4 {[%emt 0:00:17]} Rac8 {[%emt 0:00:18]} 21. Be3 {[%emt 0:02:02]} Nd5 {[%emt 0:00:15]} 22. Rac1 {[%emt 0:00:34]} Bb4 {[%emt 0:04:16]} 23. Qe2 {[%emt 0:04:23]} c5 {[%emt 0:06:04]} 24. Qf3 {[%emt 0:02:11]} Nxe3 {[%emt 0:01:15]} 25. fxe3 {[%emt 0:00:07]} Qg5 {[%emt 0:00:23]} 26. h4 {[%emt 0:05:53]} Qxh4 {[%emt 0:00:39]} 27. Rc4 {[%emt 0:04:40]} Qg5 {[%emt 0:02:21]} 28. Bb1 {[%emt 0:00:50]} Bd2 {[%emt 0:03:33]} 29. Re4 {[%emt 0:00:03]} Rb8 {[%emt 0:00:12]} 30. Rxe5 {[%emt 0:01:50]} Rxb2 {[%emt 0:00:13]} 31. Qh3 {[%emt 0:00:54]} c4 {[%emt 0:01:17]} 32. Re4 {[%emt 0:00:01]} Rdb8 {[%emt 0:01:23]} 0-1

[Event "51st Rilton Cup 2023-24"]
[Site "Stockholm"]
[Date "2023.12.28"]
[Round "2.13"]
[White "Tulchynskyi, Feliks"]
[Black "Bronstein, Or"]
[Result "0-1"]
[ECO "E52"]
[WhiteElo "2325"]
[BlackElo "2428"]
[Annotator "ChessBase"]
[PlyCount "88"]
[EventDate "2023.12.27"]
[EventType "swiss"]
[EventCountry "SWE"]
[SourceTitle "playchess.com"]
[Source "ChessBase"]
[SourceQuality "1"]
[TimeControl "40/5400+30:1800+30"]

1. d4 {[%emt 0:00:05]} Nf6 {[%emt 0:04:09]} 2. c4 {[%emt 0:00:27]} e6 {[%emt 0:00:07]} 3. Nc3 {[%emt 0:00:12]} Bb4 {[%emt 0:00:45]} 4. e3 {[%emt 0:00:47]} O-O {[%emt 0:00:43]} 5. Bd3 {[%emt 0:00:42]} d5 {[%emt 0:00:09]} 6. Nf3 {[%emt 0:00:44]} b6 {[%emt 0:00:25]} 7. O-O {[%emt 0:04:17]} Ba6 {[%emt 0:07:05]} 8. Ne5 {[%emt 0:09:22]} dxc4 {[%emt 0:08:14]} 9. Bxc4 {[%emt 0:04:28]} Bxc4 {[%emt 0:03:30]} 10. Nxc4 {[%emt 0:00:10]} Nbd7 {[%emt 0:12:22]} 11. Ne2 {[%emt 0:09:29]} b5 {[%emt 0:08:23]} 12. Nd2 {[%emt 0:11:10]} Qe7 {[%emt 0:00:16]} 13. Nf3 {[%emt 0:12:10]} Rfd8 {[%emt 0:05:18]} 14. Qc2 {[%emt 0:04:29]} e5 {[%emt 0:08:40]} 15. dxe5 {[%emt 0:07:53]} Nxe5 {[%emt 0:00:02]} 16. Nxe5 {[%emt 0:00:26]} Qxe5 {[%emt 0:00:01]} 17. Nd4 {[%emt 0:00:35]} Bd6 {[%emt 0:16:15]} 18. Nf3 {[%emt 0:01:27]} Qe4 {[%emt 0:01:34]} 19. Qxe4 {[%emt 0:03:40]} Nxe4 {[%emt 0:00:01]} 20. b3 {[%emt 0:05:09]} a5 {[%emt 0:07:27]} 21. Bb2 {[%emt 0:07:40]} a4 {[%emt 0:00:01]} 22. Rac1 {[%emt 0:01:45]} Nc5 {[%emt 0:07:00]} 23. Bd4 {[%emt 0:04:05]} Nd3 {[%emt 0:02:40]} 24. Rcd1 {[%emt 0:00:44]} Nb4 {[%emt 0:00:05]} 25. Rd2 {[%emt 0:00:19]} Be7 {[%emt 0:04:21]} 26. Re2 {[%emt 0:06:28]} c5 {[%emt 0:00:16]} 27. Bc3 {[%emt 0:00:38]} Nd5 {[%emt 0:02:32]} 28. Bb2 {[%emt 0:00:56]} a3 {[%emt 0:01:06]} 29. Ba1 {[%emt 0:00:14]} Rac8 {[%emt 0:00:38]} 30. Rc1 {[%emt 0:00:47]} Nb4 {[%emt 0:00:34]} 31. Bc3 {[%emt 0:02:28]} Nd3 {[%emt 0:00:02]} 32. Rb1 {[%emt 0:00:24]} b4 {[%emt 0:01:03]} 33. Ba1 {[%emt 0:00:28]} c4 {[%emt 0:00:07]} 34. bxc4 {[%emt 0:00:20]} Rxc4 {[%emt 0:00:01]} 35. Bd4 {[%emt 0:00:37]} Rdc8 {[%emt 0:00:34]} 36. g3 {[%emt 0:01:09]} Rc2 {[%emt 0:00:36]} 37. Rxc2 {[%emt 0:01:33]} Rxc2 {[%emt 0:00:01]} 38. Ra1 {[%emt 0:00:39]} Rc1+ {[%emt 0:01:24]} 39. Rxc1 {[%emt 0:00:22]} Nxc1 {[%emt 0:00:01]} 40. Nd2 {[%emt 0:00:14]} Bf6 {[%emt 0:01:20]} 41. Bxf6 {[%emt 0:05:15]} gxf6 {[%emt 0:00:00]} 42. Nc4 {[%emt 0:00:37]} Nxa2 {[%emt 0:00:00]} 43. Kf1 {[%emt 0:01:02]} Nc1 {[%emt 0:00:18]} 44. Ke1 {[%emt 0:00:41]} a2 {[%emt 0:00:08]} 0-1

[Event "51st Rilton Cup 2023-24"]
[Site "Stockholm"]
[Date "2023.12.28"]
[Round "2.14"]
[White "Martins, David Pires Tavares"]
[Black "Shohat, Yotam"]
[Result "1/2-1/2"]
[ECO "D00"]
[WhiteElo "2428"]
[BlackElo "2332"]
[Annotator "ChessBase"]
[PlyCount "77"]
[EventDate "2023.12.27"]
[EventType "swiss"]
[EventCountry "SWE"]
[SourceTitle "playchess.com"]
[Source "ChessBase"]
[SourceQuality "1"]
[TimeControl "40/5400+30:1800+30"]

1. d4 {[%emt 0:00:16]} Nf6 {[%emt 0:00:30]} 2. Bg5 {[%emt 0:00:57]} d5 {[%emt 0:00:30]} 3. Nd2 {[%emt 0:01:43]} c5 {[%emt 0:03:35]} 4. Bxf6 {[%emt 0:06:02]} gxf6 {[%emt 0:00:17]} 5. dxc5 {[%emt 0:00:07]} e6 {[%emt 0:01:26]} 6. e4 {[%emt 0:02:27]} Bxc5 {[%emt 0:15:12]} 7. Nb3 {[%emt 0:00:48]} Bb6 {[%emt 0:02:06]} 8. exd5 {[%emt 0:00:21]} Qxd5 {[%emt 0:02:06]} 9. Qxd5 {[%emt 0:00:57]} exd5 {[%emt 0:00:02]} 10. Nf3 {[%emt 0:00:58]} Nc6 {[%emt 0:01:56]} 11. c3 {[%emt 0:08:23]} O-O {[%emt 0:06:27]} 12. Nfd4 {[%emt 0:06:22]} Nxd4 {[%emt 0:10:12]} 13. cxd4 {[%emt 0:00:44]} a5 {[%emt 0:11:08]} 14. Nc5 {[%emt 0:15:48]} Bxc5 {[%emt 0:10:06]} 15. dxc5 {[%emt 0:00:06]} a4 {[%emt 0:00:08]} 16. Rc1 {[%emt 0:11:10]} Bd7 {[%emt 0:02:58]} 17. Kd2 {[%emt 0:00:08]} Rfc8 {[%emt 0:01:45]} 18. Ke3 {[%emt 0:05:14]} b6 {[%emt 0:08:13]} 19. Kd4 {[%emt 0:01:00]} bxc5+ {[%emt 0:01:30]} 20. Rxc5 {[%emt 0:00:13]} Rxc5 {[%emt 0:01:46]} 21. Kxc5 {[%emt 0:00:07]} Rb8 {[%emt 0:00:21]} 22. b4 {[%emt 0:00:23]} axb3 {[%emt 0:00:53]} 23. axb3 {[%emt 0:00:05]} Rxb3 {[%emt 0:00:09]} 24. Be2 {[%emt 0:05:06]} Rb2 {[%emt 0:00:45]} 25. Re1 {[%emt 0:00:40]} Rd2 {[%emt 0:02:40]} 26. Bf3 {[%emt 0:00:47]} Rxf2 {[%emt 0:00:52]} 27. Kxd5 {[%emt 0:00:34]} Bh3 {[%emt 0:06:34]} 28. Rg1 {[%emt 0:02:07]} Bf5 {[%emt 0:00:56]} 29. Kd4 {[%emt 0:00:13]} Rd2+ {[%emt 0:00:53]} 30. Ke3 {[%emt 0:00:08]} Rd3+ {[%emt 0:00:19]} 31. Kf4 {[%emt 0:00:12]} Be6 {[%emt 0:00:44]} 32. Ra1 {[%emt 0:00:20]} Rd4+ {[%emt 0:00:33]} 33. Ke3 {[%emt 0:00:09]} Rb4 {[%emt 0:00:07]} 34. Ra5 {[%emt 0:00:24]} Kg7 {[%emt 0:01:44]} 35. Be4 {[%emt 0:00:43]} Rb3+ {[%emt 0:00:23]} 36. Kf4 {[%emt 0:00:07]} Rb4 {[%emt 0:00:43]} 37. Ke3 {[%emt 0:00:05]} Rb3+ {[%emt 0:00:07]} 38. Kf4 {[%emt 0:00:05]} Rb4 {[%emt 0:00:04]} 39. Ke3 {[%emt 0:00:05]} 1/2-1/2

[Event "51st Rilton Cup 2023-24"]
[Site "Stockholm"]
[Date "2023.12.28"]
[Round "2.15"]
[White "Dragicevic, Drazen"]
[Black "Jarmula, Lukasz"]
[Result "1/2-1/2"]
[ECO "A05"]
[WhiteElo "2322"]
[BlackElo "2425"]
[Annotator "ChessBase"]
[PlyCount "85"]
[EventDate "2023.12.27"]
[EventType "swiss"]
[EventCountry "SWE"]
[SourceTitle "playchess.com"]
[Source "ChessBase"]
[SourceQuality "1"]
[TimeControl "40/5400+30:1800+30"]

1. Nf3 {[%emt 0:06:32]} b6 {[%emt 0:07:39]} 2. b3 {[%emt 0:00:00]} Bb7 {[%emt 0:01:14]} 3. Bb2 {[%emt 0:00:00]} Nf6 {[%emt 0:03:27]} 4. e3 {[%emt 0:02:27]} g6 {[%emt 0:01:44]} 5. c4 {[%emt 0:07:34]} Bg7 {[%emt 0:00:34]} 6. Nc3 {[%emt 0:00:12]} c5 {[%emt 0:03:23]} 7. Nd5 {[%emt 0:14:01]} O-O {[%emt 0:11:14]} 8. Nxf6+ {[%emt 0:02:16]} Bxf6 {[%emt 0:00:08]} 9. Bxf6 {[%emt 0:00:51]} exf6 {[%emt 0:00:07]} 10. d4 {[%emt 0:08:09]} cxd4 {[%emt 0:07:41]} 11. Qxd4 {[%emt 0:00:47]} Qe7 {[%emt 0:10:20]} 12. Rd1 {[%emt 0:07:35]} Rd8 {[%emt 0:01:09]} 13. Qd6 {[%emt 0:00:39]} Kf8 {[%emt 0:00:23]} 14. Be2 {[%emt 0:13:09]} Qxd6 {[%emt 0:00:49]} 15. Rxd6 {[%emt 0:00:02]} Ke7 {[%emt 0:00:10]} 16. Rd2 {[%emt 0:00:11]} d5 {[%emt 0:00:49]} 17. O-O {[%emt 0:00:22]} dxc4 {[%emt 0:02:28]} 18. Rxd8 {[%emt 0:00:19]} Kxd8 {[%emt 0:00:06]} 19. Bxc4 {[%emt 0:00:11]} Ke7 {[%emt 0:00:16]} 20. Rd1 {[%emt 0:02:10]} a6 {[%emt 0:03:01]} 21. Nd4 {[%emt 0:09:48]} Nd7 {[%emt 0:04:10]} 22. f3 {[%emt 0:04:16]} f5 {[%emt 0:04:48]} 23. Kf2 {[%emt 0:00:31]} b5 {[%emt 0:01:21]} 24. Be2 {[%emt 0:01:57]} Rc8 {[%emt 0:00:12]} 25. Ke1 {[%emt 0:06:15]} Nb6 {[%emt 0:01:47]} 26. Kd2 {[%emt 0:01:20]} Nd5 {[%emt 0:00:46]} 27. g3 {[%emt 0:07:11]} Kf6 {[%emt 0:06:37]} 28. Bd3 {[%emt 0:00:35]} Nb4 {[%emt 0:07:53]} 29. a3 {[%emt 0:02:54]} Nd5 {[%emt 0:04:59]} 30. Re1 {[%emt 0:01:14]} Kg7 {[%emt 0:04:15]} 31. Ra1 {[%emt 0:00:28]} Rc7 {[%emt 0:02:06]} 32. a4 {[%emt 0:00:47]} b4 {[%emt 0:01:04]} 33. a5 {[%emt 0:00:06]} Re7 {[%emt 0:03:00]} 34. Nc2 {[%emt 0:00:49]} Rd7 {[%emt 0:01:02]} 35. Nd4 {[%emt 0:00:55]} f4 {[%emt 0:02:44]} 36. gxf4 {[%emt 0:00:22]} Nxf4 {[%emt 0:00:09]} 37. exf4 {[%emt 0:00:53]} Rxd4 {[%emt 0:00:05]} 38. Ke3 {[%emt 0:00:06]} Rd5 {[%emt 0:03:12]} 39. Ra4 {[%emt 0:00:33]} Bc8 {[%emt 0:00:40]} 40. Bc4 {[%emt 0:01:24]} Rh5 {[%emt 0:00:46]} 41. Rxb4 {[%emt 0:30:36]} Rxa5 {[%emt 0:30:26]} 42. Rb6 {[%emt 0:00:00]} Rc5 {[%emt 0:00:00]} 43. Bxa6 {[%emt 0:00:00]} 1/2-1/2

[Event "51st Rilton Cup 2023-24"]
[Site "Stockholm"]
[Date "2023.12.28"]
[Round "2.16"]
[White "Ajay Santhosh Parvathareddy"]
[Black "Sidhant, Mohapatra"]
[Result "1/2-1/2"]
[ECO "A47"]
[WhiteElo "2228"]
[BlackElo "2408"]
[Annotator "ChessBase"]
[PlyCount "45"]
[EventDate "2023.12.27"]
[EventType "swiss"]
[EventCountry "SWE"]
[SourceTitle "playchess.com"]
[Source "ChessBase"]
[SourceQuality "1"]
[TimeControl "40/5400+30:1800+30"]

1. d4 {[%emt 0:00:01]} Nf6 {[%emt 0:00:42]} 2. Nf3 {[%emt 0:00:29]} e6 {[%emt 0:01:54]} 3. e3 {[%emt 0:00:05]} b6 {[%emt 0:02:43]} 4. b3 {[%emt 0:00:08]} Bb7 {[%emt 0:00:27]} 5. Bb2 {[%emt 0:00:07]} d5 {[%emt 0:00:50]} 6. Bb5+ {[%emt 0:02:58]} Nbd7 {[%emt 0:04:40]} 7. O-O {[%emt 0:00:42]} a6 {[%emt 0:00:42]} 8. Bd3 {[%emt 0:00:20]} c5 {[%emt 0:01:44]} 9. c4 {[%emt 0:04:07]} Bd6 {[%emt 0:04:25]} 10. cxd5 {[%emt 0:00:40]} Nxd5 {[%emt 0:04:38]} 11. Nc3 {[%emt 0:02:39]} cxd4 {[%emt 0:02:19]} 12. Nxd5 {[%emt 0:00:49]} Bxd5 {[%emt 0:00:16]} 13. Bxd4 {[%emt 0:00:19]} Nc5 {[%emt 0:01:58]} 14. Bc2 {[%emt 0:01:52]} O-O {[%emt 0:01:41]} 15. b4 {[%emt 0:17:22]} Nd7 {[%emt 0:12:31]} 16. Bxg7 {[%emt 0:17:27]} Kxg7 {[%emt 0:06:23]} 17. e4 {[%emt 0:00:45]} Nf6 {[%emt 0:06:48]} 18. exd5 {[%emt 0:00:49]} Nxd5 {[%emt 0:00:05]} 19. Qd4+ {[%emt 0:14:15]} Qf6 {[%emt 0:00:53]} 20. Qe4 {[%emt 0:03:55]} Qg6 {[%emt 0:04:48]} 21. Qd4+ {[%emt 0:00:15]} Qf6 {[%emt 0:00:05]} 22. Qe4 {[%emt 0:00:18]} Qg6 {[%emt 0:01:31]} 23. Qd4+ {[%emt 0:02:38]} 1/2-1/2

[Event "51st Rilton Cup 2023-24"]
[Site "Stockholm"]
[Date "2023.12.28"]
[Round "2.17"]
[White "Socko, Monika"]
[Black "Czernek, Tymon"]
[Result "1-0"]
[ECO "B55"]
[WhiteElo "2396"]
[BlackElo "2324"]
[Annotator "ChessBase"]
[PlyCount "89"]
[EventDate "2023.12.27"]
[EventType "swiss"]
[EventCountry "SWE"]
[SourceTitle "playchess.com"]
[Source "ChessBase"]
[SourceQuality "1"]
[TimeControl "40/5400+30:1800+30"]

1. e4 {[%emt 0:00:04]} c5 {[%emt 0:00:06]} 2. Nf3 {[%emt 0:00:06]} d6 {[%emt 0:00:04]} 3. d4 {[%emt 0:00:20]} cxd4 {[%emt 0:00:04]} 4. Nxd4 {[%emt 0:00:03]} Nf6 {[%emt 0:00:04]} 5. f3 {[%emt 0:00:04]} e5 {[%emt 0:04:36]} 6. Nb3 {[%emt 0:00:05]} d5 {[%emt 0:00:39]} 7. Bg5 {[%emt 0:00:28]} Be6 {[%emt 0:07:19]} 8. Bxf6 {[%emt 0:00:11]} gxf6 {[%emt 0:00:07]} 9. exd5 {[%emt 0:00:04]} Qxd5 {[%emt 0:01:19]} 10. Qxd5 {[%emt 0:00:07]} Bxd5 {[%emt 0:00:03]} 11. Nc3 {[%emt 0:00:05]} Be6 {[%emt 0:05:29]} 12. O-O-O {[%emt 0:00:07]} Nc6 {[%emt 0:03:44]} 13. Bb5 {[%emt 0:00:15]} Bh6+ {[%emt 0:05:04]} 14. Kb1 {[%emt 0:00:11]} O-O {[%emt 0:00:12]} 15. Ne4 {[%emt 0:08:04]} Bg7 {[%emt 0:15:57]} 16. Nd6 {[%emt 0:03:54]} Nb4 {[%emt 0:09:51]} 17. a3 {[%emt 0:09:43]} Nd5 {[%emt 0:02:06]} 18. Rhe1 {[%emt 0:06:44]} Rab8 {[%emt 0:08:03]} 19. Nc5 {[%emt 0:06:00]} Nc7 {[%emt 0:01:37]} 20. Bc4 {[%emt 0:01:46]} Bxc4 {[%emt 0:06:50]} 21. Nxc4 {[%emt 0:00:05]} b5 {[%emt 0:00:08]} 22. Na5 {[%emt 0:03:21]} Rfe8 {[%emt 0:04:18]} 23. Rd7 {[%emt 0:08:34]} Rbc8 {[%emt 0:02:51]} 24. Ne4 {[%emt 0:04:00]} Ne6 {[%emt 0:03:50]} 25. Rxa7 {[%emt 0:01:46]} Red8 {[%emt 0:00:17]} 26. Nb7 {[%emt 0:01:08]} Rd5 {[%emt 0:03:13]} 27. Nbd6 {[%emt 0:03:52]} Rd8 {[%emt 0:01:06]} 28. Nf5 {[%emt 0:01:58]} Kf8 {[%emt 0:02:19]} 29. Rb7 {[%emt 0:04:07]} Nd4 {[%emt 0:00:40]} 30. Nxd4 {[%emt 0:07:25]} Rxd4 {[%emt 0:00:40]} 31. Rxb5 {[%emt 0:01:16]} f5 {[%emt 0:00:06]} 32. Ng3 {[%emt 0:00:54]} f4 {[%emt 0:00:24]} 33. Nf5 {[%emt 0:03:05]} Rd2 {[%emt 0:00:05]} 34. Nxg7 {[%emt 0:04:01]} Kxg7 {[%emt 0:00:06]} 35. Rexe5 {[%emt 0:01:19]} Rxg2 {[%emt 0:00:10]} 36. Rg5+ {[%emt 0:00:02]} Rxg5 {[%emt 0:00:05]} 37. Rxg5+ {[%emt 0:00:01]} Kf6 {[%emt 0:00:06]} 38. Rc5 {[%emt 0:00:37]} Rd2 {[%emt 0:00:08]} 39. a4 {[%emt 0:00:34]} Rxh2 {[%emt 0:00:07]} 40. a5 {[%emt 0:00:07]} Re2 {[%emt 0:00:10]} 41. a6 {[%emt 0:30:17]} Re7 {[%emt 0:30:14]} 42. Ra5 {[%emt 0:01:43]} Ra7 {[%emt 0:00:11]} 43. b4 {[%emt 0:00:03]} h5 {[%emt 0:00:10]} 44. b5 {[%emt 0:00:12]} h4 {[%emt 0:00:05]} 45. b6 {[%emt 0:00:27]} 1-0

[Event "51st Rilton Cup 2023-24"]
[Site "Stockholm"]
[Date "2023.12.28"]
[Round "2.18"]
[White "Borgaonkar Akshay"]
[Black "Dhulipalla Bala Chandra Prasad"]
[Result "1/2-1/2"]
[ECO "C77"]
[WhiteElo "2206"]
[BlackElo "2396"]
[Annotator "ChessBase"]
[PlyCount "62"]
[EventDate "2023.12.27"]
[EventType "swiss"]
[EventCountry "SWE"]
[SourceTitle "playchess.com"]
[Source "ChessBase"]
[SourceQuality "1"]
[TimeControl "40/5400+30:1800+30"]

1. e4 {[%emt 0:00:05]} e5 {[%emt 0:05:31]} 2. Nf3 {[%emt 0:00:06]} Nc6 {[%emt 0:00:03]} 3. Bb5 {[%emt 0:00:06]} a6 {[%emt 0:00:06]} 4. Ba4 {[%emt 0:00:01]} Nf6 {[%emt 0:00:06]} 5. d3 {[%emt 0:00:06]} d6 {[%emt 0:00:40]} 6. c3 {[%emt 0:00:10]} g6 {[%emt 0:00:43]} 7. O-O {[%emt 0:00:12]} Bg7 {[%emt 0:00:05]} 8. Re1 {[%emt 0:00:31]} O-O {[%emt 0:00:25]} 9. h3 {[%emt 0:00:22]} h6 {[%emt 0:04:29]} 10. Be3 {[%emt 0:07:19]} Re8 {[%emt 0:05:54]} 11. Nbd2 {[%emt 0:05:13]} b5 {[%emt 0:04:57]} 12. Bc2 {[%emt 0:14:53]} a5 {[%emt 0:10:31]} 13. a3 {[%emt 0:08:48]} d5 {[%emt 0:08:12]} 14. d4 {[%emt 0:13:00]} exd4 {[%emt 0:07:03]} 15. Nxd4 {[%emt 0:00:10]} Nxd4 {[%emt 0:00:17]} 16. Bxd4 {[%emt 0:00:08]} dxe4 {[%emt 0:18:30]} 17. Nxe4 {[%emt 0:00:24]} Nxe4 {[%emt 0:01:14]} 18. Bxg7 {[%emt 0:06:34]} Kxg7 {[%emt 0:01:35]} 19. Rxe4 {[%emt 0:00:53]} Qxd1+ {[%emt 0:06:55]} 20. Rxd1 {[%emt 0:00:02]} Rxe4 {[%emt 0:00:31]} 21. Bxe4 {[%emt 0:00:02]} Ra6 {[%emt 0:01:21]} 22. Rd8 {[%emt 0:02:39]} Be6 {[%emt 0:00:42]} 23. Bd5 {[%emt 0:02:25]} Bxd5 {[%emt 0:01:59]} 24. Rxd5 {[%emt 0:00:02]} b4 {[%emt 0:00:08]} 25. axb4 {[%emt 0:00:15]} axb4 {[%emt 0:00:05]} 26. cxb4 {[%emt 0:00:04]} Ra4 {[%emt 0:00:12]} 27. Rc5 {[%emt 0:00:23]} Rxb4 {[%emt 0:00:07]} 28. Rxc7 {[%emt 0:00:03]} Rxb2 {[%emt 0:00:05]} 29. g3 {[%emt 0:00:06]} h5 {[%emt 0:00:06]} 30. h4 {[%emt 0:00:03]} Rb1+ {[%emt 0:00:04]} 31. Kg2 {[%emt 0:00:04]} Rb2 {[%emt 0:00:03]} 1/2-1/2